[Event "WYCC 2018 G18"]
[Site "Halkidiki"]
[Date "2018.10.30"]
[Round "11"]
[White "Nguyen, Thi Minh Thu"]
[Black "Kieu, Bich Thuy"]
[Result "1/2-1/2"]
[ECO "D53"]
[WhiteElo "1849"]
[BlackElo "1913"]
[Annotator "NA"]
[PlyCount "37"]
[EventDate "2018.10.20"]
[EventType "swiss"]
[EventCountry "GRE"]
[SourceTitle "playchess.com"]
[Source "ChessBase"]
[SourceQuality "1"]
[TimeControl "40/5400+30:1800+30"]

1. d4 {[%emt 0:00:00]} d5 {[%emt 0:00:00]} 2. c4 {[%emt 0:00:00]} e6 {[%emt 0:00:00]} 3. Nc3 {[%emt 0:00:00]} Nf6 {[%emt 0:00:11]} 4. Bg5 {[%emt 0:00:14]} Be7 {[%emt 0:00:43]} 5. Nf3 {[%emt 0:00:33]} c6 {[%emt 0:01:34]} 6. e3 {[%emt 0:01:28]} O-O {[%emt 0:03:56]} 7. Bd3 {[%emt 0:02:17]} h6 {[%emt 0:04:09]} 8. Bh4 {[%emt 0:02:39]} dxc4 {[%emt 0:02:31]} 9. Bxc4 {[%emt 0:00:14]} Nd5 {[%emt 0:00:22]} 10. Bxe7 {[%emt 0:02:20]} Qxe7 {[%emt 0:00:19]} 11. O-O {[%emt 0:00:20]} Nd7 {[%emt 0:04:28]} 12. Rc1 {[%emt 0:02:34]} Nxc3 {[%emt 0:02:22]} 13. Rxc3 {[%emt 0:00:37]} e5 {[%emt 0:00:55]} 14. dxe5 {[%emt 0:02:16]} Nxe5 {[%emt 0:00:11]} 15. Nxe5 {[%emt 0:00:08]} Qxe5 {[%emt 0:00:13]} 16. Qb3 {[%emt 0:00:07]} Rb8 {[%emt 0:07:45]} 17. Rd1 {[%emt 0:01:57]} Bf5 {[%emt 0:02:40]} 18. h3 {[%emt 0:01:35]} b6 {[%emt 0:09:18]} 19. Bd3 {[%emt 0:00:55]} 1/2-1/2

[Event "WYCC 2018 G18"]
[Site "Halkidiki"]
[Date "2018.10.30"]
[Round "11"]
[White "Perminaite, Guoda"]
[Black "Stashis, Anna"]
[Result "1/2-1/2"]
[ECO "B22"]
[WhiteElo "1840"]
[BlackElo "1979"]
[Annotator "NA"]
[PlyCount "48"]
[EventDate "2018.10.20"]
[EventType "swiss"]
[EventCountry "GRE"]
[SourceTitle "playchess.com"]
[Source "ChessBase"]
[SourceQuality "1"]
[TimeControl "40/5400+30:1800+30"]

1. e4 {[%emt 0:00:00]} c5 {[%emt 0:00:00]} 2. c3 {[%emt 0:00:00]} Nf6 {[%emt 0:00:00]} 3. e5 {[%emt 0:00:05]} Nd5 {[%emt 0:00:00]} 4. d4 {[%emt 0:00:15]} cxd4 {[%emt 0:00:12]} 5. cxd4 {[%emt 0:00:13]} d6 {[%emt 0:00:43]} 6. Nf3 {[%emt 0:02:23]} Nc6 {[%emt 0:00:25]} 7. Bc4 {[%emt 0:00:24]} Nb6 {[%emt 0:00:39]} 8. Bb5 {[%emt 0:01:30]} dxe5 {[%emt 0:01:14]} 9. Nxe5 {[%emt 0:00:50]} Bd7 {[%emt 0:01:11]} 10. Nxd7 {[%emt 0:01:30]} Qxd7 {[%emt 0:00:27]} 11. Nc3 {[%emt 0:00:39]} e6 {[%emt 0:02:11]} 12. O-O {[%emt 0:01:34]} Rd8 {[%emt 0:02:32] B22: Sicilian: 2 c3} 13. Be3 {[%emt 0:02:56]} Be7 {[%emt 0:02:42]} 14. Qg4 {[%emt 0:02:05]} O-O {[%emt 0:06:40]} 15. Rad1 {[%emt 0:04:27]} Kh8 {[%emt 0:12:44] [#]} 16. a3 $146 {[%emt 0:04:47]} ({Predecessor:} 16. d5 exd5 17. Qxd7 Rxd7 18. Bxb6 axb6 19. Rxd5 Rxd5 20. Nxd5 Bc5 21. Re1 g6 {½-½ (21) Simacek,P (2501)-Stocek,J (2566) Prague 2007}) 16... Nd5 {[%emt 0:25:46]} 17. Nxd5 {[%emt 0:03:52]} Qxd5 {[%emt 0:00:28]} 18. Qe2 {[%emt 0:01:03]} Bd6 {[%emt 0:11:06]} 19. Bc4 {[%emt 0:09:43]} Qe4 {[%emt 0:01:46]} 20. Rfe1 {[%emt 0:08:12]} Ne7 {[%emt 0:05:37]} 21. Qh5 $11 {[%emt 0:10:19]} (21. d5 $5) 21... Qf5 {[%emt 0:02:43]} 22. Qxf5 {[%emt 0:10:47]} Nxf5 {[%emt 0:00:12]} 23. d5 {[%emt 0:00:49]} Nxe3 {[%emt 0:05:00]} 24. Rxe3 {[%emt 0:00:32]} Bc5 {[%emt 0:02:13]} 1/2-1/2

[Event "WYCC 2018 G18"]
[Site "Halkidiki"]
[Date "2018.10.30"]
[Round "11"]
[White "Simic, Anja"]
[Black "Hrescak, Ivana"]
[Result "1/2-1/2"]
[ECO "E91"]
[WhiteElo "1813"]
[BlackElo "2173"]
[Annotator "NA"]
[PlyCount "102"]
[EventDate "2018.10.20"]
[EventType "swiss"]
[EventCountry "GRE"]
[SourceTitle "playchess.com"]
[Source "ChessBase"]
[SourceQuality "1"]
[TimeControl "40/5400+30:1800+30"]

1. d4 {[%emt 0:00:00]} Nf6 {[%emt 0:00:00]} 2. c4 {[%emt 0:00:00]} g6 {[%emt 0:00:00]} 3. Nc3 {[%emt 0:00:00]} Bg7 {[%emt 0:00:00]} 4. e4 {[%emt 0:00:00]} d6 {[%emt 0:00:00]} 5. Nf3 {[%emt 0:00:02]} O-O {[%emt 0:00:00]} 6. Be2 {[%emt 0:00:05]} Nbd7 {[%emt 0:00:00]} 7. O-O {[%emt 0:00:07]} e5 {[%emt 0:00:07]} 8. d5 {[%emt 0:00:07]} Nc5 {[%emt 0:00:02]} 9. Qc2 {[%emt 0:00:06]} a5 {[%emt 0:00:03]} 10. Be3 {[%emt 0:00:45]} Ng4 {[%emt 0:09:49]} 11. Bxc5 {[%emt 0:04:48]} dxc5 {[%emt 0:00:02]} 12. Ne1 {[%emt 0:12:14] E94: Königsindisch (Klassisches System)} h5 {[%emt 0:08:14]} 13. Nd3 {[%emt 0:07:11]} b6 $146 {[%emt 0:00:45]} ({Vorgänger:} 13... Qe7 14. h3 Nh6 15. f3 f5 16. Nf2 Nf7 17. Rfd1 Bh6 18. d6 cxd6 {0-1 (39) Houdart,D (2228)-Shirazi,K (2416) Cappelle-la-Grande 2005}) 14. a3 {[%emt 0:02:27]} Qh4 {[%emt 0:11:26]} 15. Bxg4 {[%emt 0:16:52]} hxg4 {[%emt 0:00:20]} 16. b4 {[%emt 0:05:32]} axb4 {[%emt 0:01:16]} 17. axb4 {[%emt 0:00:07]} Rxa1 {[%emt 0:00:07]} 18. Rxa1 {[%emt 0:00:05]} cxb4 {[%emt 0:00:22]} 19. Nxb4 {[%emt 0:02:12]} Bf6 {[%emt 0:24:58]} 20. Qd3 {[%emt 0:24:18]} Kg7 {[%emt 0:08:14]} 21. Qg3 {[%emt 0:05:31]} Qh6 {[%emt 0:07:40]} 22. Nc6 {[%emt 0:04:58]} Re8 {[%emt 0:01:43]} 23. Ne2 {[%emt 0:10:23]} Bd7 {[%emt 0:06:23]} 24. Rd1 {[%emt 0:02:38]} Bxc6 {[%emt 0:09:17]} 25. dxc6 {[%emt 0:00:05]} Re6 {[%emt 0:00:10]} 26. Qxg4 {[%emt 0:01:28]} Rxc6 {[%emt 0:00:16]} 27. Ng3 {[%emt 0:00:35]} Qg5 {[%emt 0:00:23]} 28. Qe2 {[%emt 0:00:39]} Be7 {[%emt 0:00:53]} 29. Nf1 {[%emt 0:00:38]} Bc5 {[%emt 0:00:32]} 30. g3 {[%emt 0:00:16]} Rf6 {[%emt 0:01:56]} 31. Ne3 {[%emt 0:00:32]} Bxe3 {[%emt 0:01:10]} 32. Qxe3 {[%emt 0:00:35]} Qxe3 {[%emt 0:00:59]} 33. fxe3 {[%emt 0:00:05]} Rc6 {[%emt 0:00:40]} 34. Rc1 {[%emt 0:00:11]} Rc5 {[%emt 0:04:49]} 35. Kf1 {[%emt 0:00:39]} b5 {[%emt 0:02:51]} 36. Ke2 {[%emt 0:00:53]} bxc4 {[%emt 0:01:43]} 37. Kd2 {[%emt 0:00:34]} Kf6 {[%emt 0:00:22]} 38. Kc3 {[%emt 0:00:14]} Rc6 {[%emt 0:00:45]} 39. Rf1+ {[%emt 0:00:18]} Ke6 {[%emt 0:00:06]} 40. g4 {[%emt 0:00:00]} g5 {[%emt 0:00:00]} 41. h3 {[%emt 0:11:45]} f6 {[%emt 0:06:04]} 42. Rd1 {[%emt 0:01:54]} Rd6 {[%emt 0:05:52]} 43. Re1 {[%emt 0:02:16]} Ra6 {[%emt 0:11:02]} 44. Kxc4 {[%emt 0:03:43]} Ra2 {[%emt 0:00:23]} 45. Rf1 {[%emt 0:03:49]} Ra4+ {[%emt 0:00:08]} 46. Kd3 {[%emt 0:00:17]} Ra3+ {[%emt 0:00:16]} 47. Kd2 {[%emt 0:00:21]} c5 {[%emt 0:03:01]} 48. Rf3 {[%emt 0:03:33]} Ke7 {[%emt 0:01:13]} 49. Kc2 {[%emt 0:01:43]} Ke6 {[%emt 0:00:06]} 50. Kd2 {[%emt 0:00:25]} Rb3 {[%emt 0:01:42]} 51. Kc2 $15 {[%emt 0:02:13]} (51. h4 $5) 51... Ra3 1/2-1/2

[Event "WYCC 2018 G18"]
[Site "Halkidiki"]
[Date "2018.10.30"]
[Round "11"]
[White "Mocanu, Valeria"]
[Black "Koehler, Inken"]
[Result "1/2-1/2"]
[ECO "B42"]
[WhiteElo "1800"]
[BlackElo "1934"]
[Annotator "NA"]
[PlyCount "96"]
[EventDate "2018.10.20"]
[EventType "swiss"]
[EventCountry "GRE"]
[SourceTitle "playchess.com"]
[Source "ChessBase"]
[SourceQuality "1"]
[TimeControl "40/5400+30:1800+30"]

1. e4 {[%emt 0:00:00]} c5 {[%emt 0:00:00]} 2. Nf3 {[%emt 0:00:00]} e6 {[%emt 0:00:00]} 3. d4 {[%emt 0:00:00]} cxd4 {[%emt 0:00:00]} 4. Nxd4 {[%emt 0:00:00]} a6 {[%emt 0:00:00]} 5. Bd3 {[%emt 0:00:00] LiveBook: 12550 Games} Bc5 {[%emt 0:00:04]} 6. Nb3 {[%emt 0:00:04]} Be7 {[%emt 0:00:09]} 7. O-O {[%emt 0:00:49]} d6 {[%emt 0:00:27]} 8. c4 {[%emt 0:04:45]} Nf6 {[%emt 0:00:55] B42: Sicilian: Kan Variation: 5 Bd3} 9. Be3 {[%emt 0:01:11]} (9. Nc3 Nbd7 10. a4 b6 11. a5 O-O 12. axb6 Nxb6 13. Be3 Qc7 14. Na5 Rb8 15. b4 Nfd7 16. Rc1 Ne5 17. Be2 Nbd7 {1-0 (64) Kasimdzhanov,R (2704)-Gajewski,G (2654) Berlin 2015}) 9... Nbd7 {[%emt 0:00:59]} 10. Nc3 {[%emt 0:00:59]} Qc7 {[%emt 0:00:53]} 11. Qe2 {[%emt 0:00:39]} b6 {[%emt 0:01:25]} 12. f3 {[%emt 0:10:21]} Bb7 {[%emt 0:01:55]} 13. a4 $146 {[%emt 0:08:31]} ({Predecessor:} 13. Qf2 O-O 14. Rac1 Rac8 15. Rfd1 Bd8 16. Bf1 Qb8 17. Nd4 Bc7 18. g3 Rfe8 19. b4 Ne5 20. Nb3 Qa8 21. Be2 d5 22. exd5 exd5 23. c5 d4 24. Nxd4 bxc5 25. bxc5 Nxf3+ 26. Bxf3 Bxf3 27. Qxf3 Qxf3 28. Nxf3 Rxe3 {0-1 (56) Warakomska,A (2223)-Kalinina,O (2259) Katowice 2014}) 13... Nc5 {[%emt 0:05:07]} 14. Bc2 {[%emt 0:14:59]} Nxb3 {[%emt 0:04:20]} 15. Bxb3 {[%emt 0:00:05]} O-O {[%emt 0:00:13]} 16. Bc2 {[%emt 0:06:44]} Nd7 {[%emt 0:02:44]} 17. Bd3 {[%emt 0:13:44]} Rac8 {[%emt 0:07:05]} 18. b3 {[%emt 0:01:58]} Bf6 {[%emt 0:10:21]} 19. Rfc1 {[%emt 0:02:24]} Rfe8 {[%emt 0:09:58]} 20. f4 {[%emt 0:05:04]} Nc5 {[%emt 0:03:32]} 21. Bxc5 {[%emt 0:01:46]} Qxc5+ {[%emt 0:01:00]} 22. Kh1 {[%emt 0:00:08]} Bxc3 {[%emt 0:13:33]} 23. Rxc3 {[%emt 0:00:05]} Qd4 {[%emt 0:00:05]} 24. Rcc1 {[%emt 0:09:51]} d5 {[%emt 0:03:46]} 25. Re1 {[%emt 0:01:19]} dxe4 {[%emt 0:04:02]} 26. Bxe4 {[%emt 0:00:05]} Qxe4 {[%emt 0:01:06]} 27. Qxe4 {[%emt 0:00:04]} Bxe4 {[%emt 0:00:05]} 28. Rxe4 {[%emt 0:00:08]} Red8 {[%emt 0:00:07]} 29. Rae1 {[%emt 0:00:42]} Kf8 {[%emt 0:02:07]} 30. Kg1 {[%emt 0:00:13]} Rd2 {[%emt 0:02:56]} 31. R1e2 {[%emt 0:01:49]} Rcd8 {[%emt 0:02:31]} 32. Kf2 {[%emt 0:00:46]} Ke7 $11 {[%emt 0:01:19]} 33. f5 {[%emt 0:07:14]} Rxe2+ {[%emt 0:02:08]} 34. Kxe2 {[%emt 0:00:04]} Rd6 {[%emt 0:06:17]} 35. fxe6 {[%emt 0:00:23]} Rxe6 {[%emt 0:00:12]} 36. Kd3 {[%emt 0:01:31]} Rxe4 {[%emt 0:00:50]} 37. Kxe4 {[%emt 0:00:04]} Kd6 {[%emt 0:00:36]} 38. b4 {[%emt 0:01:34]} Kc6 {[%emt 0:03:57]} 39. g4 {[%emt 0:04:54]} a5 {[%emt 0:01:39]} 40. bxa5 {[%emt 0:00:00]} bxa5 {[%emt 0:00:00]} 41. Kd4 {[%emt 0:07:24]} f6 {[%emt 0:05:09]} 42. h4 {[%emt 0:04:02]} Kd6 {[%emt 0:02:25]} 43. h5 {[%emt 0:03:38]} Kc6 {[%emt 0:00:45]} 44. c5 {[%emt 0:00:49]} g6 {[%emt 0:00:41]} 45. h6 {[%emt 0:04:00]} f5 {[%emt 0:00:34]} 46. gxf5 {[%emt 0:00:04]} gxf5 {[%emt 0:00:04]} 47. Ke5 {[%emt 0:00:27]} Kxc5 {[%emt 0:00:05]} 48. Kxf5 {[%emt 0:00:04]} Kd5 {[%emt 0:00:05] Ke4+} 1/2-1/2

[Event "WYCC 2018 G18"]
[Site "Halkidiki"]
[Date "2018.10.30"]
[Round "11"]
[White "Martos Amiguet, Valentina"]
[Black "Greibrokk, Ingrid"]
[Result "0-1"]
[ECO "D00"]
[WhiteElo "1775"]
[BlackElo "2018"]
[Annotator "NA"]
[PlyCount "80"]
[EventDate "2018.10.20"]
[EventType "swiss"]
[EventCountry "GRE"]
[SourceTitle "playchess.com"]
[Source "ChessBase"]
[SourceQuality "1"]
[TimeControl "40/5400+30:1800+30"]

1. d4 d5 2. Bf4 Nf6 3. e3 e6 4. Nf3 Nbd7 5. Nbd2 Be7 6. Bd3 O-O 7. h3 {D02: Damenbauernspiele} c5 8. c3 b6 9. O-O (9. Ne5 Bb7 10. Qf3 Qc8 11. a4 a6 12. O-O c4 13. Be2 Kh8 {1-0 (48) Hort,V (2421)-Clara,H (2289) Dresden 2018}) 9... a5 10. Re1 Ba6 11. Bc2 Rc8 $146 ({Vorgänger:} 11... b5 12. Ne5 Nxe5 13. dxe5 Nd7 14. Qg4 {1-0 (25) Freeman,R (2121)-Lysons,J (1960) Telford 2004}) 12. e4 dxe4 13. Nxe4 Nxe4 14. Bxe4 Nf6 15. Bc2 Bb7 16. Rc1 cxd4 17. cxd4 (17. Nxd4 $11 {remains equal.} Qd5 18. Qf3) 17... Bb4 18. Re3 Nd5 19. Qd3 Rxc2 20. Qxc2 Nxf4 21. a3 Be7 22. Qc7 Bxf3 23. Qxf4 Bd5 24. Qg4 h5 25. Qg3 Bh4 26. Qh2 Bg5 27. f4 Bf6 28. Rd3 Be4 $19 29. Rdd1 Bxd4+ 30. Kh1 Qf6 31. Rc4 Rd8 32. Qg3 b5 33. Rc7 Bxb2 34. Re1 Bg6 35. Rb7 Qc3 36. Qh4 Rc8 37. Rxb5 Bxa3 38. Ree5 Bb4 39. Kh2 Bd6 40. Rg5 Qd2 0-1

[Event "WYCC 2018 G18"]
[Site "Halkidiki"]
[Date "2018.10.30"]
[Round "11"]
[White "Manriquez Abarzua, Maria Belen"]
[Black "Tonso, Liina"]
[Result "1-0"]
[ECO "B28"]
[WhiteElo "1630"]
[BlackElo "1805"]
[Annotator "NA"]
[PlyCount "115"]
[EventDate "2018.10.20"]
[EventType "swiss"]
[EventCountry "GRE"]
[SourceTitle "playchess.com"]
[Source "ChessBase"]
[SourceQuality "1"]
[TimeControl "40/5400+30:1800+30"]

1. e4 {[%emt 0:00:00]} c5 {[%emt 0:00:00]} 2. Nf3 {[%emt 0:00:00]} a6 {[%emt 0:00:00]} 3. d4 {[%emt 0:00:00]} cxd4 {[%emt 0:00:01]} 4. Nxd4 {[%emt 0:00:00]} e5 {[%emt 0:00:13]} 5. Nb3 {[%emt 0:00:02]} Nf6 {[%emt 0:00:42]} 6. Nc3 {[%emt 0:00:07]} Bb4 {[%emt 0:00:56]} 7. Bd3 {[%emt 0:02:25]} O-O {[%emt 0:06:20]} 8. O-O {[%emt 0:00:13]} d6 {[%emt 0:06:29]} 9. Bg5 {[%emt 0:02:58]} Bxc3 {[%emt 0:09:11]} 10. bxc3 {[%emt 0:00:07]} h6 {[%emt 0:02:36]} 11. Bc1 {[%emt 0:04:08]} d5 {[%emt 0:06:17]} 12. exd5 {[%emt 0:04:57]} Nxd5 {[%emt 0:02:35]} 13. Qe1 {[%emt 0:05:22]} Qc7 {[%emt 0:08:01]} 14. c4 {[%emt 0:03:31]} Nf6 {[%emt 0:02:45]} 15. Bb2 {[%emt 0:01:42]} Re8 {[%emt 0:08:21]} 16. Qc3 {[%emt 0:03:42]} Nc6 {[%emt 0:03:36]} 17. Rfe1 {[%emt 0:00:29]} Bd7 {[%emt 0:10:24]} 18. Nc5 {[%emt 0:05:42]} Qb6 {[%emt 0:04:25]} 19. Nxd7 {[%emt 0:04:33]} Nxd7 {[%emt 0:00:16]} 20. Rab1 {[%emt 0:01:54]} Qb4 {[%emt 0:03:06]} 21. Be4 {[%emt 0:01:19]} Qxc3 {[%emt 0:02:41]} 22. Bxc3 {[%emt 0:01:23]} Rab8 {[%emt 0:00:50]} 23. h3 {[%emt 0:01:11]} g6 {[%emt 0:04:54]} 24. Bxc6 {[%emt 0:00:30]} bxc6 {[%emt 0:00:09]} 25. Rbd1 {[%emt 0:01:34]} Rb7 {[%emt 0:01:13]} 26. Rd6 {[%emt 0:00:16]} Re6 {[%emt 0:04:13]} 27. Red1 {[%emt 0:02:06]} Rxd6 {[%emt 0:03:47]} 28. Rxd6 {[%emt 0:00:02]} Kf8 {[%emt 0:01:49]} 29. Rxc6 {[%emt 0:01:11]} Rb1+ {[%emt 0:01:04]} 30. Kh2 {[%emt 0:00:04]} Rc1 {[%emt 0:00:54]} 31. Bb4+ {[%emt 0:01:23]} Kg7 {[%emt 0:00:13]} 32. Rd6 {[%emt 0:01:45]} Nf8 {[%emt 0:04:29]} 33. Rd2 {[%emt 0:00:56]} Ne6 34. Bc3 Nd4 {[%emt 0:01:05]} 35. f4 {[%emt 0:01:34]} Rxc2 {[%emt 0:01:51]} 36. Rxc2 {[%emt 0:00:02]} Nxc2 {[%emt 0:00:06]} 37. Bxe5+ {[%emt 0:03:39]} Kf8 {[%emt 0:00:26]} 38. Bd6+ Ke8 {[%emt 0:00:30]} 39. g4 {[%emt 0:00:57]} Kd7 {[%emt 0:00:00]} 40. Bf8 {[%emt 0:00:00]} Ne3 {[%emt 0:00:00]} 41. Bxh6 {[%emt 0:03:35]} Nxc4 42. Kg3 Ke7 {[%emt 0:09:11]} 43. h4 {[%emt 0:03:18]} Nd6 {[%emt 0:01:52]} 44. Kf3 {[%emt 0:01:15]} Nb5 {[%emt 0:00:54]} 45. h5 {[%emt 0:03:12]} gxh5 {[%emt 0:03:42]} 46. gxh5 {[%emt 0:00:03]} f6 {[%emt 0:00:22]} 47. Bg7 {[%emt 0:00:32]} Kf7 {[%emt 0:03:43]} 48. h6 Nd4+ {[%emt 0:01:39]} 49. Ke4 {[%emt 0:02:06]} Ne6 {[%emt 0:00:29]} 50. f5 {[%emt 0:00:17]} Nc7 {[%emt 0:02:28]} 51. a4 {[%emt 0:02:21]} Ne8 {[%emt 0:09:09]} 52. Kd5 {[%emt 0:00:24]} Kg8 {[%emt 0:01:16]} 53. Ke6 {[%emt 0:00:17]} Nxg7+ {[%emt 0:00:36]} 54. hxg7 {[%emt 0:00:02]} Kxg7 {[%emt 0:00:12]} 55. a5 {[%emt 0:00:04]} Kg8 {[%emt 0:00:30]} 56. Kxf6 {[%emt 0:00:10]} Kf8 {[%emt 0:00:10]} 57. Ke6 {[%emt 0:00:09]} Ke8 {[%emt 0:00:22]} 58. f6 {[%emt 0:00:09]} 1-0

[Event "WYCC 2018 G18"]
[Site "Halkidiki"]
[Date "2018.10.30"]
[Round "11"]
[White "Ramirez Toledo, Ayleen Maribel"]
[Black "Belluire, Beatrice"]
[Result "1/2-1/2"]
[ECO "A05"]
[WhiteElo "1545"]
[BlackElo "1931"]
[Annotator "NA"]
[PlyCount "84"]
[EventDate "2018.10.20"]
[EventType "swiss"]
[EventCountry "GRE"]
[SourceTitle "playchess.com"]
[Source "ChessBase"]
[SourceQuality "1"]
[TimeControl "40/5400+30:1800+30"]

1. Nf3 {[%emt 0:00:00]} Nf6 {[%emt 0:00:00]} 2. g3 {[%emt 0:00:02]} b5 {[%emt 0:00:00]} 3. Bg2 {[%emt 0:00:07]} Bb7 {[%emt 0:00:00]} 4. d4 {[%emt 0:00:12]} e6 {[%emt 0:00:38]} 5. O-O {[%emt 0:00:23]} c5 {[%emt 0:00:08]} 6. b3 {[%emt 0:05:59]} d5 {[%emt 0:05:29]} 7. Bb2 {[%emt 0:02:39]} Be7 {[%emt 0:00:34]} 8. c4 {[%emt 0:12:38]} b4 {[%emt 0:16:24]} 9. Qc2 {[%emt 0:05:48]} Nbd7 {[%emt 0:01:38]} 10. Nbd2 {[%emt 0:01:28]} dxc4 {[%emt 0:01:53]} 11. Nxc4 {[%emt 0:02:24]} O-O {[%emt 0:02:10]} 12. Rfd1 {[%emt 0:02:33]} Qc7 {[%emt 0:01:09]} 13. Rac1 {[%emt 0:01:51]} Rac8 {[%emt 0:01:48]} 14. Nfe5 {[%emt 0:13:30]} Bxg2 {[%emt 0:02:53]} 15. Kxg2 {[%emt 0:00:15]} Qb7+ {[%emt 0:00:47]} 16. Kg1 $11 {[%emt 0:03:57]} cxd4 {[%emt 0:10:22]} 17. Bxd4 {[%emt 0:03:58]} Nxe5 {[%emt 0:02:03]} 18. Bxe5 {[%emt 0:00:10]} Rfd8 {[%emt 0:02:24]} 19. Qb2 {[%emt 0:03:57]} Qa6 {[%emt 0:04:12]} 20. Kg2 {[%emt 0:04:21]} h6 {[%emt 0:01:06]} 21. Ne3 {[%emt 0:03:18]} Rxc1 {[%emt 0:02:56]} 22. Rxc1 {[%emt 0:00:17]} Rc8 {[%emt 0:03:36]} 23. Rxc8+ {[%emt 0:01:37]} Qxc8 {[%emt 0:00:01]} 24. f3 {[%emt 0:03:59]} Ne8 {[%emt 0:03:53]} 25. Bd4 {[%emt 0:03:15]} Bf6 {[%emt 0:04:00]} 26. Bxf6 {[%emt 0:04:01]} Nxf6 {[%emt 0:00:05]} 27. Qd4 {[%emt 0:00:28]} Qa6 {[%emt 0:03:46]} 28. Qd2 {[%emt 0:01:36]} Qb5 {[%emt 0:02:07]} 29. Kf2 {[%emt 0:01:41]} Nd7 {[%emt 0:01:36]} 30. Nc2 {[%emt 0:02:07]} a5 {[%emt 0:01:16]} 31. Ne3 {[%emt 0:00:54]} Nc5 {[%emt 0:00:40]} 32. Qd4 {[%emt 0:01:12]} Nb7 {[%emt 0:04:34]} 33. Nc4 {[%emt 0:01:48]} Kf8 {[%emt 0:01:44]} 34. Ke3 {[%emt 0:01:58]} Qg5+ {[%emt 0:04:19]} 35. Kf2 {[%emt 0:01:15]} Qh5 {[%emt 0:06:30]} 36. h4 {[%emt 0:01:30]} Qb5 {[%emt 0:02:49]} 37. Ke3 {[%emt 0:01:05]} f6 {[%emt 0:03:38]} 38. g4 {[%emt 0:03:32]} e5 {[%emt 0:01:36]} 39. Qa7 {[%emt 0:02:14]} Qd5 {[%emt 0:01:02]} 40. Qb6 {[%emt 0:00:00]} Qd7 {[%emt 0:00:00]} 41. Qa7 {[%emt 0:05:00]} Qd5 {[%emt 0:05:22]} 42. Qb6 {[%emt 0:01:25]} Qd7 {[%emt 0:10:31]} 1/2-1/2